Cogmind - Beta 13 @@@ ROGUE MODE // 2024.04.01 @ 21:12:03 Player: Drako Result: Destroyed by L-31 Rogue with Katana Performance ------------- Evolutions (1) 500 Regions Visited (2) 400 Robots Destroyed (58) 290 Value Destroyed (1416) 1416 Prototype IDs (6) 120 Alien Tech Used (0) 0 Bonus (130) 130 TOTAL SCORE: 2856 Bonus ------- High Alert Combat Kills 130 Cogmind --------- Core Integrity 0/400 Matter 109/300 Energy 272/280 System Corruption 5% Temperature Cool (17) Movement Walking (330) Ox3 Location -9/Materials Parts ------- > --- POWER (1) -------- Heavy Ion Engine > --- PROPULSION (3) --- Aluminum Leg > --- UTILITY (3) ------ Large Storage Unit Improved Sensor Array Hardened Light Armor Plating > --- WEAPON (2) ------- Improved Assault Rifle Improved Assault Rifle > --- INVENTORY (15) --- Improved Ion Engine Improved Ion Engine Improved Ion Engine Improved Sensor Array Signal Interpreter Hacking Suite High-powered Tractor Beam Autogun Autogun Enhanced Autogun Enhanced Autogun Peak State ------------ > --- POWER ------------ Heavy Ion Engine > --- PROPULSION ------- Aluminum Leg Aluminum Leg Hover Unit > --- UTILITY ---------- Large Storage Unit Improved Sensor Array Medium Armor Plating > --- WEAPON ----------- Autogun Enhanced Autogun > --- INVENTORY -------- Improved Ion Engine Improved Ion Engine Improved Ion Engine Medium Storage Unit Improved Sensor Array Signal Interpreter Hardened Light Armor Plating Hacking Suite High-powered Tractor Beam Autogun Improved Assault Rifle Improved Assault Rifle Enhanced Autogun [Rating: 21] Favorites ----------- Power Ion Engine Engine Ion Engine Power Core Light Nuclear Core Propulsion Hover Unit Treads Light Treads Leg Aluminum Leg Wheel Wheel Hover Unit Hover Unit Flight Unit Flight Unit Utility Improved Sensor Array Device Improved Sensor Array Storage Medium Storage Unit Protection Medium Armor Plating Weapon Enhanced Autogun Energy Gun Medium Laser Ballistic Gun Enhanced Autogun Launcher Grenade Launcher Build | -11 -10 -9 ------- Run | Yrd Mat Mat Slots Evolved 2 | . . 2 Power . | . . . Propulsion 1 | . . 1 Utility 1 | . . 1 Weapon . | . . . Parts Attached 79 | 5 25 49 Power 13 | 1 4 8 Engine 12 | 1 3 8 Core 1 | . 1 . Reactor . | . . . Propulsion 22 | 2 9 11 Treads 3 | . . 3 Leg 7 | . 2 5 Wheel 2 | 2 . . Hover 8 | . 5 3 Flight 2 | . 2 . Utility 17 | . 7 10 Device 8 | . 4 4 Storage 5 | . 3 2 Processor . | . . . Hackware . | . . . Protection 4 | . . 4 Artifact . | . . . Weapon 27 | 2 5 20 Energy Gun 8 | 2 2 4 Energy Cannon . | . . . Ballistic Gun 16 | . 2 14 Ballistic Cannon . | . . . Launcher 3 | . 1 2 Special Weapon . | . . . Impact Weapon . | . . . Slashing Weapon . | . . . Piercing Weapon . | . . . Special Melee Weapon . | . . . Unidentified Prototypes 4 | . . 4 Parts Lost 21 | . 6 15 Power 5 | . 2 3 Propulsion 8 | . 2 6 Utility 6 | . 1 5 Weapon 2 | . 1 1 Highest Loss Streak 6 | . 5 6 To Critical Strikes . | . . . Average Slot Usage (%) 89 | . 79 91 Engine 10 | . 7 10 Treads 2 | . . 3 Leg 11 | . 9 11 Hover 11 | . 4 12 Flight 1 | . 8 . Device 13 | . 6 14 Storage 9 | . 5 10 Protection 5 | . . 6 Energy Gun 2 | . 5 2 Ballistic Gun 18 | . 17 19 Naked Turns . | . . . Heaviest Build 42 | 6 22 42 Greatest Support 40 | 20 20 40 Greatest Overweight (x) 3 | . 3 2 Average Overweight (x) . | . . . Largest Inventory Capacity 15 | 5 10 15 Average Capacity 11 | 5 6 12 Most Carried 15 | 4 7 15 Average Carried 8 | 1 4 9 Final Capacity 15 | 5 5 15 Final Carried 11 | 2 5 11 Class Distribution -------------------- 69% | Scavenger-Mutant 30% | Mutant Dominant Class ---------------- Mutant | -10/Materials Scavenger-Mutant | -9/Materials Resources | -11 -10 -9 ----------- Run | Yrd Mat Mat Matter Collected 1709 | 99 276 1334 Remotely 142 | . . 142 Salvage Created 1752 | 40 276 1436 Parts 148 | 2 32 114 Haulers Intercepted 3 | . 1 2 Recyclers Shooed . | . . . Parts Field Recycled . | . . . Retrieved Matter . | . . . Parts Self-Destructed . | . . . Prevented . | . . . Kills | -11 -10 -9 ------- Run | Yrd Mat Mat Combat Hostiles Destroyed 46 | 1 9 36 Guns 39 | 1 6 32 AOE 7 | . 3 4 Classes Destroyed 8 | 1 3 4 Builder 2 | . . 2 Hauler 3 | . 1 2 Operator 1 | . . 1 Watcher 6 | . 2 4 Swarmer 18 | . 6 12 Grunt 20 | 1 3 16 Duelist 1 | . . 1 Sentry 7 | . . 7 Best Kill Streak 5 | 1 4 5 Combat Bots Only 4 | 1 3 4 Max Kills in Single Turn 3 | 1 3 2 Gunslinging 1 | . 1 . Exploded 3 | . 3 2 Melee . | . . . Uniques/NPCs Destroyed . | . . . Combat | -11 -10 -9 -------- Run | Yrd Mat Mat Hostile Shots Fired 319 | 6 82 231 Missed 83 | 3 23 57 Damage Taken 2953 | 32 636 2285 Core 572 | 10 139 423 Absorbed by Shields . | . . . Regen/Repaired (Parts) 71 | . . 71 Core Remaining (%) 68 | 96 40 . Volleys Fired 178 | 5 31 142 Largest 2 | 2 2 2 Hottest 106 | 90 100 106 Shots Fired 335 | 10 61 264 Gun 330 | 10 60 260 Cannon . | . . . Launcher 5 | . 1 4 Special . | . . . Kinetic 251 | . 47 204 Thermal 79 | 10 13 56 Explosive 5 | . 1 4 Electromagnetic . | . . . Robot Hit Streak 8 | 3 6 8 Robot Miss Streak 5 | 5 4 5 Penetration Max . | . . . Secondary Targets 10 | . 2 8 Max Gunslinging Chain 1 | . 1 1 Shots Hit Robots 199 | 5 32 162 Core Hits 81 | 2 15 64 Critical Kills 2 | . . 2 Critical Parts Destroyed . | . . . Critical Strikes 5 | . . 5 Burn 3 | . . 3 Destroy 2 | . . 2 Melee Attacks . | . . . Impact . | . . . Slashing . | . . . Piercing . | . . . Sneak Attacks . | . . . Combat Hostiles . | . . . Follow-up Attacks . | . . . Damage Inflicted 3543 | 58 601 2884 Guns 3192 | 58 503 2631 Cannons . | . . . Explosions 351 | . 98 253 Melee . | . . . Ramming . | . . . Kinetic 2444 | . 402 2042 Thermal 748 | 58 101 589 Explosive 351 | . 98 253 Electromagnetic . | . . . Impact . | . . . Slashing . | . . . Piercing . | . . . Highest Corruption 5 | . . 5 Average Corruption 4 | . . 4 Corruption Purged . | . . . Corruption Blocked . | . . . Effects 23 | . . 23 Message Errors 3 | . . 3 Matter Fused 5 | . . 5 Heat Flow Errors 3 | . . 3 Energy Discharges 2 | . . 2 Data Loss (minor) 4 | . . 4 Data Loss (major) 2 | . . 2 Misfires 1 | . . 1 Alerts 2 | . . 2 Weapon Failures 1 | . . 1 Overload Shots . | . . . Overflow Damage 12 | . 12 . Projectiles . | . . . Explosions 12 | . 12 . Melee . | . . . Knockbacks . | . . . Impact . | . . . Kinetic . | . . . Secondary . | . . . Self-Inflicted Damage 76 | . 37 39 Shots 2 | . 1 1 Rammed . | . . . Targets Rammed . | . . . Kicked . | . . . Crushed . | . . . Highest Temperature 409 | 168 36 409 Average Temperature 72 | 85 15 79 Received Heat Transfer 852 | 18 201 633 Effects 2 | . . 2 Energy Bleed 1 | . . 1 Short Circuit 1 | . . 1 Siege Activations . | . . . Robots Corrupted . | . . . Combat Hostiles . | . . . Parts Fried . | . . . Impact Corruptions . | . . . Robots Melted . | . . . Combat Hostiles . | . . . Parts Melted 7 | 1 1 5 Heat Transferred 2344 | 161 296 1887 Parts Sabotaged . | . . . Parts Stolen . | . . . Parts Stripped . | . . . Power Chain Reactions . | . . . Alert | -11 -10 -9 ------- Run | Yrd Mat Mat Peak Influence 609 | 20 281 609 Initial 118 | . 13 118 Average 392 | 4 140 444 Maximum Alert Level 2 | . 1 2 Low Security (%) 13 | 100 66 2 Level 1 27 | . 33 27 Level 2 58 | . . 70 Level 3 . | . . . Level 4 . | . . . Level 5 . | . . . High Security . | . . . Max Security . | . . . Squads Dispatched 8 | . 2 6 Investigation 3 | . 1 2 Extermination . | . . . Reinforcement 4 | . 1 3 Assault 1 | . . 1 Garrison . | . . . Intercept . | . . . Searches Triggered . | . . . Construction Impeded . | . . . Haulers Reinforced . | . . . Active Scanning Responses . | . . . Cargo Convoy Interrupts . | . . . Stealth | -11 -10 -9 --------- Run | Yrd Mat Mat Distress Signals 4 | . 2 2 Communications Jammed . | . . . Distress Signals . | . . . Times Spotted 70 | 1 13 56 Peak Tracking Total 8 | 1 4 8 Tactical Retreats 1 | . . 1 Traps | -11 -10 -9 ------- Run | Yrd Mat Mat Traps Triggered 5 | . 1 4 Indirectly . | . . . Trap Hack Attempts . | . . . Triggered . | . . . Disarmed . | . . . Reprogrammed . | . . . Reused . | . . . Traps Extracted . | . . . Installed . | . . . Triggered . | . . . Machines | -11 -10 -9 ---------- Run | Yrd Mat Mat Machines Disabled 4 | . 1 3 Max in Single Turn 1 | . 1 1 Machines Repaired . | . . . Machines Dismantled . | . . . Machines Sabotaged . | . . . Overloaded Fab Kills . | . . . Hacking | -11 -10 -9 --------- Run | Yrd Mat Mat Machines Accessed 12 | . 2 10 Terminals 7 | . 1 6 Fabricators . | . . . Repair Stations 2 | . 1 1 Recycling Units 1 | . . 1 Scanalyzers 2 | . . 2 Garrison Access . | . . . Total Hacks 34 | . 2 32 Successful 20 | . 2 18 Failed 14 | . . 14 Catastrophic 4 | . . 4 Database Lockouts . | . . . Manual . | . . . Terminals 17 | . 1 16 Fabricators . | . . . Repair Stations 6 | . 1 5 Recycling Units 3 | . . 3 Scanalyzers 8 | . . 8 Garrison Access . | . . . Terminal Hacks 6 | . 1 5 Prototype ID Bank 1 | . . 1 Emergency Access Points 1 | . . 1 Unreport Threat 1 | . . 1 Recall Investigation 1 | . . 1 Registered Components 1 | . . 1 Zone Layout 1 | . 1 . Fabricator Hacks . | . . . Repair Station Hacks 3 | . 1 2 Scan Component 1 | . . 1 Repair 1 | . . 1 Refit 1 | . 1 . Recycling Unit Hacks 3 | . . 3 Process 1 | . . 1 Report Inventory 1 | . . 1 Retrieve Matter 1 | . . 1 Scanalyzer 8 | . . 8 Insert Component 4 | . . 4 Analyze 4 | . . 4 Garrison Access Hacks . | . . . Unauthorized Hacks . | . . . Terminals . | . . . Fabricators . | . . . Repair Stations . | . . . Recycling Units . | . . . Scanalyzers . | . . . Garrison Access . | . . . Data Cores Recovered 1 | . . 1 Used . | . . . Hacking Detections 8 | . 1 7 Full Trace Events 1 | . . 1 Feedback Events . | . . . Feedback Blocked . | . . . Robot Schematics Acquired . | . . . Robots Built . | . . . Authchips . | . . . Time . | . . . Total Robot Build Rating . | . . . Part Schematics Acquired 4 | . . 4 Parts Built . | . . . Authchips . | . . . Time . | . . . Total Part Build Rating . | . . . Parts Repaired 1 | . . 1 Time 60 | . . 60 Parts Recycled . | . . . Recycled Matter 16 | . . 16 Retrieved Matter 16 | . . 16 Retrieved Components . | . . . Parts Scanalyzed 4 | . . 4 Part Schematics Acquired 4 | . . 4 Parts Damaged . | . . . Bothacking | -11 -10 -9 ------------ Run | Yrd Mat Mat Used RIF Installer . | . . . Robots Hacked . | . . . Non-combat . | . . . Combat . | . . . Robot Hacks Applied . | . . . Relay Couplers Released . | . . . Fabnet Peak Effective % . | . . . Robots Rewired . | . . . Allies Hacked . | . . . Hacks Repelled . | . . . Allies | -11 -10 -9 -------- Run | Yrd Mat Mat Total Allies . | . . . Largest Group . | . . . Highest-Rated Group . | . . . Highest-Rated Ally . | . . . Total Orders . | . . . Ally Attacks . | . . . Total Damage . | . . . Kills . | . . . Allies Corrupted . | . . . Allies Melted . | . . . Intel | -11 -10 -9 ------- Run | Yrd Mat Mat Robot Analysis Total . | . . . Derelict Logs Recovered . | . . . Drone Launches . | . . . Drone Recoveries . | . . . Exploration | -11 -10 -9 ------------- Run | Yrd Mat Mat Turns Passed 2532 | 79 325 2128 Spaces Moved 1371 | 72 263 1036 Core 17 | 17 . . Treads 178 | . . 178 Legs 420 | . 38 382 Wheels 83 | 55 28 . Hover 434 | . 26 408 Flight 239 | . 171 68 Fastest Speed 37 | 50 37 37 Average Speed 136 | 72 66 158 Slowest Speed 280 | 80 280 260 Overloaded Moves . | . . . Propulsion Burnouts . | . . . Robots Hopped 2 | . . 2 Cave-ins Triggered . | . . . Exploration Rate (%) 48 | 6 52 87 Regions Visited 2 Branch Regions . Pre-discovered Areas . | . . . Known Exits Taken . | . . . Unknown Exits Taken 2 | 1 1 . Scrap Searched . | . . . Spaces Dug . | . . . Terrain Destroyed 42 | . 11 31 Melee . | . . . Projectile . | . . . AOE 42 | . 11 31 Terrain Rammed . | . . . Walls Destroyed . | . . . Machines Disabled . | . . . Actions | -11 -10 -9 --------- Run | Yrd Mat Mat Total 1768 | 88 349 1331 Wait 19 | . . 19 Move 1365 | 71 262 1032 Hop 2 | . . 2 Pick Up 78 | 7 18 53 Fast Attach 1 | . 1 . Attach 35 | 5 8 22 Detach 5 | . 2 3 Swap 43 | . 16 27 Drop 42 | . 11 31 Fire 178 | 5 31 142 Melee . | . . . Ram . | . . . Kick . | . . . Crush . | . . . Escape Stasis . | . . . Rewire . | . . . Trap . | . . . Miscellaneous . | . . . Route ------- -11/Scrapyard -10/Materials (discovered 2 exits: *Mat / [*Min]) -9/Materials (discovered 4 exits: [*Mat x3] / [*Min]) History --------- Turn | Location | Event 2 | -11/Scrapyard | Met Revision 17 45 | -11/Scrapyard | Discovered new exit (range 8) 80 | -11/Scrapyard | Entered Materials 297 | -10/Materials | Core integrity fell below 50% 297 | -10/Materials | Discovered new exit (range 7) 326 | -10/Materials | Lost 5 parts (2p1n1u1w) 350 | -10/Materials | Discovered new exit (range 8) 355 | -10/Materials | Build established: Mutant 405 | -10/Materials | Entered another Materials area 405 | -9/Materials | Evolved 2 slots: Propulsion x1, Utility x1 593 | -9/Materials | Core integrity fell below 50% 630 | -9/Materials | Lost 6 parts (2p1n2u1w) 762 | -9/Materials | Build established: Scavenger-Mutant 771 | -9/Materials | Discovered new exit (range 4) 1294 | -9/Materials | Discovered new exit (range 7) 1709 | -9/Materials | Discovered new exit (range 4) 1764 | -9/Materials | Repaired Enh. Autogun? 2345 | -9/Materials | Core integrity fell below 20% 2405 | -9/Materials | First assault squad dispatched 2427 | -9/Materials | Build established: Mutant 2489 | -9/Materials | Discovered new exit (range 15) 2533 | -9/Materials | Destroyed by L-31 Rogue with Katana Last Messages --------------- System corrupted: Energy discharge (-78). Destroyed Lgt. Ion Engine. W-16 Scout destroyed. EXIT=FOUND System corrupted: Heat flow error (+260). U-05 Engineer builds a Wall. U-05 Engineer lays Concrete. U-05 Engineer builds a Wall. U-05 Engineer lays Concrete. T-07 Excavator is excavating. System corrupted: Component data lost. C-30 ARC bursts open, deploying its payload. L-31 Rogue unfolds itself. B-36 Bruiser unfolds itself. I-25 Savior unfolds itself. Knocked back. Med. Armor Plating destroyed. Aluminum Leg destroyed. Critical hit (Burn: +37). System corrupted: Component data lost. Map ----- +----------------------------------------------------+ | ???????????????????????????????????????????? | | ???????????????????????????????????????????? | | ???????????????????????????????????????????? | | ???????????????????????????????????????????? | | ???????????????????????????????????????????? | | ???????????????????????????????????????????? | | ???????????????????????????????????????????? | | ???????????????????????????????????????????? | | ???????????????????????????????????????????? | | ???????????????????????????????????????????? | | ???????????????????????????????????????????? | | ???????????????????????????????????????????? | | ???????????????????????????????????????????? | | ???????????????????????????????????????????? | | ???????????????????????????????????????????? | | ???????????????????????????????????????????? | | ??????????????????????????????####?????????? | | ?????????????????????????????? #?????????? | | ?????????????????????????????# < #?????????? | | ?????????????????????????????# #?????????? | | ?????????????????????????????+ #?????????? | | ?????????????????????????????#! #?????????? | | ?????????????????????????????#%! #?????????? | | ?????????????????????????????#= #?????????? | | ??????????????????????######## #??##?????? | | ??????????????????????# @bm # #? ##????? | | ??????????????????????# ilg # #? #????? | | ??????????????????????#"""g +" # #????? | | ??????????????????????#""" #%" # ?#????? | | ??????????????????????#""" *# ? #????? | | ??????????????????????# # # ###????? | | ??????????????????????######## #?##??????? | | ??????????????????????# #?# #?????????? | | ??????????????????????# #?# #?????????? | | ??????????????????????# #?# #?????????? | | ??????????????????????# #?# ########### | | ??????###########?????# #?# ## *** # | | ??????# ####### ### ## # | | ??????# """ # ###+### # # | | #####?# """"" # * # ! # | | #?# """"" + [= ! + ! # | | #?# """"" # !%= [ # ! # | | "" #?# """ # *###+### # = # | | "" #?# ## ###= T ####### # | | "" ??# ## #?# ! #?????# # | | ????############ #?# #?????########## | | ################## #?# #??????????????? | | # ## #?# #??????????????? | | = # """ ## #?# #??????????????? | | !%* # """ ]## #?# ! #??????????????? | +----------------------------------------------------+ Best States ------------- Heat Dissipation 42 Energy Generation 14 Energy Capacity 280 Matter Stores 300 Matter Capacity 350 Sight Range 16 Robot Scan Range 15 Terrain Scan Range 14 Terrain Scan Density 10 Armor Coverage 225 Evasion (%) 62 Recoil Reduction 2 Item Schematics ----------------- Lgt. Treads | -9/Materials | Scanalyzed Imp. Sensor Array | -9/Materials | Scanalyzed Hvy. Assault Rifle | -9/Materials | Scanalyzed Enh. Autogun | -9/Materials | Scanalyzed Robot Schematics ------------------ None Fabricated ------------ Nothing Alien Tech Used ----------------- None Achievements -------------- Everything Is Under Control Oops Significant Disruption Use The Force Challenges ------------ None Game ------ Seed RagnarokGhostDissipator Manual? 0 Play Time 00:46:27 Cumulative 4.0 hours Start 2024.04.01 @ 20:00:39 End 2024.04.01 @ 21:12:03 Sessions 3 Manual Loads 0 Difficulty Rogue Special Mode None Game No. 3 Rogue 3 Adventurer 0 Explorer 0 Win Type - Total 0 Types 0/0/0/0/0/0/0/0/0 Lore% 2 Gallery% 8 Achievement% 9 Wizard Run 0 Options --------- Layout 1 ASCII 0 Keyboard 0 Movement Mouse Keybinds 0 Fullscreen 1 Font 24/Smallcaps Map View 50x35 Zoom Use 0% Tactical HUD 0 Map Filters NONE Filters NONE Steam 1 RUN: ebca608d-d027-4049-bfb1-41c378ddc240